Workbook

Sheet Quantité
A2: CM3 | B2: 5.4 | E2: poids (g) | F2: longeur (m) | G2: % de bobine 1kg | H2: Prix | I2: Temps (h)
D3: PLA 1.75mm | E3: =B$2*1.25 -> 6.75 | F3: =B$2/(PI()*0.175*0.175)/100 -> 0.5612647789 | G3: =E3/1000 -> 0.00675 | H3: =G3*25 -> 0.16875 | I3: =(($B$2/(PI()*0.04*0.04))/0.6)/(60*60) -> 0.4973591972
D4: ABS 1.75mm | E4: =B$2*1.03 -> 5.562 | F4: =B$2/(PI()*0.175*0.175)/100 -> 0.5612647789 | G4: =E4/1000 -> 0.005562 | H4: =G4*25 -> 0.13905 | I4: =(($B$2/(PI()*0.04*0.04))/0.6)/(60*60) -> 0.4973591972
D5: Nilon 1.75mm | E5: =B$2*1.24 -> 6.696 | F5: =B$2/(PI()*0.175*0.175)/100 -> 0.5612647789 | G5: =E5/1000 -> 0.006696 | H5: =G5*70 -> 0.46872 | I5: 0.4973591972
D6: Polypropylène 1.75 mm | E6: =B$2*0.9 -> 4.86 | F6: =B$2/(PI()*0.175*0.175)/100 -> 0.5612647789 | G6: 0.00486 | H6: =G6*30.39 -> 0.1476954 | I6: 0.4973591972

Sheet Formule
A1: cylindre | B1: Exterieur (rayon ) | C1: Interieur (rayon) | D1: longeur | E1: cm3
B2: 4 | C2: 2.5 | D2: 30 | E2: =((B2^2*PI()-C2^2*PI())*D2)/1000 -> 0.9189158512
A4: Cube | B4: Exterieur | C4: pourcentage | D4: cm3
B5: 30 | C5: 0.2 | D5: =(B5^3*C5)/1000 -> 5.4
A7: Boite | B7: Longeur | C7: largeur | D7: Hauteur | E7: épaisseur | F7: cm3
B8: 100 | C8: 50 | D8: 80 | E8: 2 | F8: =((B8*C8*D8)-((B8-E8*2)*(C8-E8*2)*(D8-E8*2)))/1000 -> 64.384
A10: Table | B10: Longeur | C10: largeur | D10: épaisseur | E10: cm3
B11: 300 | C11: 300 | D11: 2 | E11: =B11*C11*D11/1000 -> 180

Sheet Feuil3
A1: 3 | B1: =A1*A1*PI() -> 28.27433388
A2: 0.3 | B2: =A2*A2*PI() -> 0.2827433388
B3: =B1/B2 -> 100
